[Event "January 9 Early 2024"]
[Site "https://www.chess.com"]
[Date "2024.01.11"]
[Round "2"]
[White "Kleibel, Uwe"]
[Black "Arabidze, Meri"]
[Result "1/2-1/2"]
[Board "231"]
[TimeControl "180+1"]
[WhiteFideId "1270982"]
[BlackFideId "13604040"]
[WhiteElo "2364"]
[BlackElo "2724"]
[WhiteTeam "GER"]
[BlackTeam "GEO"]
[WhiteClock "0:00:32"]
[BlackClock "0:00:03"]

1. e4 {[%clk 0:02:54]}  c5 {[%clk 0:03:00]} 2. Nf3 {[%clk 0:02:52]}  e6 {[%clk 0:03:00]} 3. g3 {[%clk 0:02:51]}  Nc6 {[%clk 0:02:57]} 4. Bg2 {[%clk 0:02:52]}  Nf6 {[%clk 0:02:57]} 5. Qe2 {[%clk 0:02:52]}  e5 {[%clk 0:02:54]} 6. Nc3 {[%clk 0:02:50]}  Be7 {[%clk 0:02:53]} 7. Nd5 {[%clk 0:02:50]}  d6 {[%clk 0:02:52]} 8. d3 {[%clk 0:02:48]}  O-O {[%clk 0:02:49]} 9. O-O {[%clk 0:02:44]}  Be6 {[%clk 0:02:48]} 10. Nxe7+ {[%clk 0:02:41]}  Qxe7 {[%clk 0:02:47]} 11. c3 {[%clk 0:02:41]}  h6 {[%clk 0:02:44]} 12. Nh4 {[%clk 0:02:39]}  d5 {[%clk 0:02:37]} 13. h3 {[%clk 0:02:26]}  Qd7 {[%clk 0:02:34]} 14. Kh2 {[%clk 0:02:26]}  c4 {[%clk 0:02:23]} 15. exd5 {[%clk 0:02:20]}  cxd3 {[%clk 0:02:21]} 16. Qxd3 {[%clk 0:02:20]}  Bxd5 {[%clk 0:02:19]} 17. Rd1 {[%clk 0:02:07]}  Rad8 {[%clk 0:02:15]} 18. Be3 {[%clk 0:02:04]}  Bxg2 {[%clk 0:02:08]} 19. Qxd7 {[%clk 0:02:03]}  Rxd7 {[%clk 0:02:08]} 20. Rxd7 {[%clk 0:02:02]}  Nxd7 {[%clk 0:02:09]} 21. Kxg2 {[%clk 0:02:00]}  Nb6 {[%clk 0:01:59]} 22. Rd1 {[%clk 0:01:56]}  Nc4 {[%clk 0:01:42]} 23. Bc1 {[%clk 0:01:55]}  Rd8 {[%clk 0:01:28]} 24. Rxd8+ {[%clk 0:01:54]}  Nxd8 {[%clk 0:01:28]} 25. b3 {[%clk 0:01:54]}  Nd6 {[%clk 0:01:28]} 26. Be3 {[%clk 0:01:54]}  Nc6 {[%clk 0:01:22]} 27. c4 {[%clk 0:01:47]}  h5 {[%clk 0:01:13]} 28. Kf1 {[%clk 0:01:42]}  g6 {[%clk 0:01:02]} 29. Nf3 {[%clk 0:01:36]}  f5 {[%clk 0:00:42]} 30. Ng5 {[%clk 0:01:24]}  Kg7 {[%clk 0:00:42]} 31. Ne6+ {[%clk 0:01:22]}  Kf6 {[%clk 0:00:42]} 32. Nc5 {[%clk 0:01:23]}  g5 {[%clk 0:00:35]} 33. f3 {[%clk 0:01:13]}  f4 {[%clk 0:00:27]} 34. gxf4 {[%clk 0:01:12]}  exf4 {[%clk 0:00:24]} 35. Bf2 {[%clk 0:01:11]}  Kf5 {[%clk 0:00:24]} 36. Ke2 {[%clk 0:01:10]}  b6 {[%clk 0:00:16]} 37. Nd3 {[%clk 0:01:06]}  Nf7 {[%clk 0:00:15]} 38. c5 {[%clk 0:01:04]}  bxc5 {[%clk 0:00:13]} 39. Bxc5 {[%clk 0:01:05]}  a6 {[%clk 0:00:05]} 40. b4 {[%clk 0:01:02]}  g4 {[%clk 0:00:05]} 41. hxg4+ {[%clk 0:01:02]}  hxg4 {[%clk 0:00:06]} 42. fxg4+ {[%clk 0:00:54]}  Kxg4 {[%clk 0:00:07]} 43. Nf2+ {[%clk 0:00:55]}  Kf5 {[%clk 0:00:06]} 44. a4 {[%clk 0:00:53]}  Nfe5 {[%clk 0:00:06]} 45. b5 {[%clk 0:00:51]}  axb5 {[%clk 0:00:06]} 46. axb5 {[%clk 0:00:52]}  Na5 {[%clk 0:00:05]} 47. b6 {[%clk 0:00:48]}  Nb7 {[%clk 0:00:02]} 48. Bd4 {[%clk 0:00:45]}  Nc6 {[%clk 0:00:03]} 49. Kd3 {[%clk 0:00:42]}  Nxd4 {[%clk 0:00:02]} 50. Kxd4 {[%clk 0:00:43]}  Ke6 {[%clk 0:00:02]} 51. Nd3 {[%clk 0:00:39]}  f3 {[%clk 0:00:02]} 52. Ke3 {[%clk 0:00:36]}  Kd6 {[%clk 0:00:02]} 53. Kxf3 {[%clk 0:00:35]}  Kc6 {[%clk 0:00:03]} 54. Nc5 {[%clk 0:00:32]}  Kxb6 {[%clk 0:00:03]} 1/2-1/2

[Event "January 9 Early 2024"]
[Site "https://www.chess.com"]
[Date "2024.01.11"]
[Round "2"]
[White "Hamblok, Roel"]
[Black "Matthes, Aaron"]
[Result "1-0"]
[Board "232"]
[TimeControl "180+1"]
[WhiteFideId "209317"]
[BlackFideId "16227310"]
[WhiteElo "2644"]
[BlackElo "2375"]
[WhiteTeam "BEL"]
[BlackTeam "GER"]
[WhiteClock "0:00:12"]
[BlackClock "0:00:01"]

1. e4 {[%clk 0:03:00]}  b6 {[%clk 0:02:58]} 2. d4 {[%clk 0:03:00]}  Bb7 {[%clk 0:02:58]} 3. Bg5 {[%clk 0:02:59]}  Bxe4 {[%clk 0:02:52]} 4. d5 {[%clk 0:03:00]}  h6 {[%clk 0:02:48]} 5. Bh4 {[%clk 0:03:00]}  g5 {[%clk 0:02:46]} 6. Nc3 {[%clk 0:03:00]}  Bg6 {[%clk 0:02:41]} 7. Bg3 {[%clk 0:03:00]}  d6 {[%clk 0:02:40]} 8. h4 {[%clk 0:02:51]}  Bg7 {[%clk 0:02:38]} 9. Nf3 {[%clk 0:02:49]}  g4 {[%clk 0:02:23]} 10. Nd4 {[%clk 0:02:30]}  Bxd4 {[%clk 0:02:22]} 11. Qxd4 {[%clk 0:02:30]}  Nf6 {[%clk 0:02:21]} 12. h5 {[%clk 0:02:22]}  Bxc2 {[%clk 0:02:15]} 13. Rc1 {[%clk 0:02:22]}  Bf5 {[%clk 0:02:10]} 14. Nb5 {[%clk 0:02:16]}  Na6 {[%clk 0:02:07]} 15. Qa4 {[%clk 0:02:13]}  Nc5 {[%clk 0:02:06]} 16. Rxc5 {[%clk 0:02:04]}  bxc5 {[%clk 0:02:06]} 17. Nxd6+ {[%clk 0:01:53]}  Kf8 {[%clk 0:02:06]} 18. Nxf5 {[%clk 0:01:53]}  Qxd5 {[%clk 0:02:03]} 19. Ne3 {[%clk 0:01:51]}  Qd4 {[%clk 0:01:56]} 20. Qxd4 {[%clk 0:01:27]}  cxd4 {[%clk 0:01:55]} 21. Nf5 {[%clk 0:01:28]}  c5 {[%clk 0:01:43]} 22. Bc4 {[%clk 0:01:27]}  Ne4 {[%clk 0:01:23]} 23. Bf4 {[%clk 0:01:20]}  e6 {[%clk 0:01:14]} 24. Nxh6 {[%clk 0:01:11]}  Ke7 {[%clk 0:00:33]} 25. Nxg4 {[%clk 0:01:06]}  Rag8 {[%clk 0:00:34]} 26. f3 {[%clk 0:00:58]}  Nf6 {[%clk 0:00:33]} 27. Nxf6 {[%clk 0:00:54]}  Kxf6 {[%clk 0:00:34]} 28. Kf2 {[%clk 0:00:51]}  e5 {[%clk 0:00:31]} 29. Bc1 {[%clk 0:00:49]}  Re8 {[%clk 0:00:21]} 30. Rh4 {[%clk 0:00:42]}  Ke7 {[%clk 0:00:17]} 31. b3 {[%clk 0:00:39]}  f6 {[%clk 0:00:17]} 32. h6 {[%clk 0:00:34]}  Kd6 {[%clk 0:00:16]} 33. h7 {[%clk 0:00:27]}  Re7 {[%clk 0:00:14]} 34. Bg8 {[%clk 0:00:27]}  Rg7 {[%clk 0:00:14]} 35. Rh6 {[%clk 0:00:25]}  Ke7 {[%clk 0:00:12]} 36. Ba3 {[%clk 0:00:25]}  Rhxg8 {[%clk 0:00:04]} 37. Bxc5+ {[%clk 0:00:24]}  Ke6 {[%clk 0:00:04]} 38. hxg8=Q+ {[%clk 0:00:24]}  Rxg8 {[%clk 0:00:05]} 39. Bxa7 {[%clk 0:00:22]}  Ra8 {[%clk 0:00:05]} 40. Rh7 {[%clk 0:00:22]}  f5 {[%clk 0:00:02]} 41. b4 {[%clk 0:00:18]}  e4 {[%clk 0:00:03]} 42. a4 {[%clk 0:00:15]}  Kd5 {[%clk 0:00:02]} 43. a5 {[%clk 0:00:12]}  e3+ {[%clk 0:00:02]} 44. Ke2 {[%clk 0:00:13]}  Rc8 {[%clk 0:00:02]} 45. Rd7+ {[%clk 0:00:12]}  Kc4 {[%clk 0:00:01]} 46. Rxd4+ {[%clk 0:00:12]} 1-0

[Event "January 9 Early 2024"]
[Site "https://www.chess.com"]
[Date "2024.01.11"]
[Round "2"]
[White "Skiadopoulos, Nikolaos"]
[Black "Teimouri Yadkuri, Shahdad"]
[Result "0-1"]
[Board "233"]
[TimeControl "180+1"]
[WhiteFideId "4200772"]
[BlackFideId "42515467"]
[WhiteElo "1939"]
[BlackElo "2430"]
[WhiteTeam "GRE"]
[BlackTeam "IRI"]
[WhiteClock "0:00:02"]
[BlackClock "0:00:05"]

1. e4 {[%clk 0:03:00]}  c5 {[%clk 0:02:59]} 2. Nf3 {[%clk 0:02:59]}  d6 {[%clk 0:02:59]} 3. Bb5+ {[%clk 0:02:58]}  Nd7 {[%clk 0:02:57]} 4. O-O {[%clk 0:02:56]}  Nf6 {[%clk 0:02:57]} 5. e5 {[%clk 0:02:55]}  dxe5 {[%clk 0:02:51]} 6. Nxe5 {[%clk 0:02:54]}  a6 {[%clk 0:02:51]} 7. Bxd7+ {[%clk 0:02:49]}  Nxd7 {[%clk 0:02:33]} 8. Qe2 {[%clk 0:02:13]}  g6 {[%clk 0:02:20]} 9. Re1 {[%clk 0:02:09]}  Bg7 {[%clk 0:02:17]} 10. Nf3 {[%clk 0:01:43]}  e5 {[%clk 0:01:36]} 11. d4 {[%clk 0:01:36]}  cxd4 {[%clk 0:01:35]} 12. Nxd4 {[%clk 0:01:36]}  O-O {[%clk 0:01:35]} 13. Nb3 {[%clk 0:01:33]}  b5 {[%clk 0:01:33]} 14. Nc3 {[%clk 0:01:32]}  Bb7 {[%clk 0:01:33]} 15. Be3 {[%clk 0:01:26]}  Qc7 {[%clk 0:01:29]} 16. Rad1 {[%clk 0:01:22]}  Rfd8 {[%clk 0:01:14]} 17. Nd5 {[%clk 0:01:19]}  Bxd5 {[%clk 0:01:05]} 18. Rxd5 {[%clk 0:01:18]}  Nf6 {[%clk 0:00:53]} 19. Rxd8+ {[%clk 0:01:13]}  Rxd8 {[%clk 0:00:54]} 20. Rd1 {[%clk 0:01:11]}  Nd5 {[%clk 0:00:45]} 21. Bg5 {[%clk 0:00:40]}  f6 {[%clk 0:00:44]} 22. Bc1 {[%clk 0:00:32]}  f5 {[%clk 0:00:39]} 23. Bg5 {[%clk 0:00:28]}  Rd7 {[%clk 0:00:39]} 24. h4 {[%clk 0:00:25]}  e4 {[%clk 0:00:36]} 25. g3 {[%clk 0:00:21]}  Nb6 {[%clk 0:00:25]} 26. Rxd7 {[%clk 0:00:19]}  Qxd7 {[%clk 0:00:23]} 27. c3 {[%clk 0:00:19]}  Nc4 {[%clk 0:00:23]} 28. Bc1 {[%clk 0:00:15]}  Be5 {[%clk 0:00:20]} 29. Nc5 {[%clk 0:00:10]}  Qd6 {[%clk 0:00:19]} 30. b4 {[%clk 0:00:10]}  Bxc3 {[%clk 0:00:19]} 31. Nxe4 {[%clk 0:00:08]}  fxe4 {[%clk 0:00:18]} 32. Qxe4 {[%clk 0:00:08]}  Kf7 {[%clk 0:00:10]} 33. Bh6 {[%clk 0:00:04]}  Ne5 {[%clk 0:00:08]} 34. Bf4 {[%clk 0:00:03]}  Ke6 {[%clk 0:00:04]} 35. h5 {[%clk 0:00:03]}  Qd1+ {[%clk 0:00:03]} 36. Kg2 {[%clk 0:00:03]}  Qd5 {[%clk 0:00:04]} 37. Qxd5+ {[%clk 0:00:01]}  Kxd5 {[%clk 0:00:05]} 38. hxg6 {[%clk 0:00:02]}  hxg6 {[%clk 0:00:05]} 0-1

[Event "January 9 Early 2024"]
[Site "https://www.chess.com"]
[Date "2024.01.11"]
[Round "2"]
[White "Avramidou, Anastasia"]
[Black "Fernandez Garcia, Gumersindo"]
[Result "0-1"]
[Board "234"]
[TimeControl "180+1"]
[WhiteFideId "4239873"]
[BlackFideId "24516740"]
[WhiteElo "2523"]
[BlackElo "2359"]
[WhiteTeam "GRE"]
[BlackTeam "ESP"]
[WhiteClock "0:00:02"]
[BlackClock "0:00:17"]

1. Nf3 {[%clk 0:03:00]}  d5 {[%clk 0:02:57]} 2. d4 {[%clk 0:03:00]}  Nf6 {[%clk 0:02:57]} 3. c4 {[%clk 0:03:01]}  e6 {[%clk 0:02:57]} 4. Nc3 {[%clk 0:03:01]}  Bb4 {[%clk 0:02:56]} 5. g3 {[%clk 0:02:59]}  O-O {[%clk 0:02:54]} 6. Bg2 {[%clk 0:02:59]}  dxc4 {[%clk 0:02:53]} 7. O-O {[%clk 0:02:58]}  Nc6 {[%clk 0:02:48]} 8. Qa4 {[%clk 0:02:56]}  Bd7 {[%clk 0:02:45]} 9. Qc2 {[%clk 0:02:54]}  Rb8 {[%clk 0:02:32]} 10. Rd1 {[%clk 0:02:53]}  h6 {[%clk 0:02:19]} 11. e4 {[%clk 0:02:50]}  b5 {[%clk 0:02:13]} 12. Bf4 {[%clk 0:02:32]}  Qc8 {[%clk 0:02:05]} 13. a3 {[%clk 0:01:20]}  Bxc3 {[%clk 0:02:00]} 14. bxc3 {[%clk 0:01:21]}  a6 {[%clk 0:01:52]} 15. a4 {[%clk 0:01:14]}  Re8 {[%clk 0:01:46]} 16. h4 {[%clk 0:01:12]}  Ne7 {[%clk 0:01:38]} 17. axb5 {[%clk 0:01:12]}  axb5 {[%clk 0:01:37]} 18. Ra7 {[%clk 0:01:09]}  Rb7 {[%clk 0:01:35]} 19. Rda1 {[%clk 0:01:09]}  Bc6 {[%clk 0:01:31]} 20. Ne5 {[%clk 0:01:03]}  Rxa7 {[%clk 0:01:23]} 21. Rxa7 {[%clk 0:01:04]}  Bb7 {[%clk 0:01:24]} 22. Qb1 {[%clk 0:01:04]}  Nc6 {[%clk 0:01:20]} 23. Nxc6 {[%clk 0:01:03]}  Bxc6 {[%clk 0:01:20]} 24. Bxc7 {[%clk 0:00:51]}  Re7 {[%clk 0:01:14]} 25. Bb6 {[%clk 0:00:37]}  Rxa7 {[%clk 0:01:14]} 26. Bxa7 {[%clk 0:00:37]}  Qb7 {[%clk 0:01:14]} 27. Bc5 {[%clk 0:00:35]}  Nxe4 {[%clk 0:01:10]} 28. Bb4 {[%clk 0:00:15]}  Nd2 {[%clk 0:01:00]} 29. Bxc6 {[%clk 0:00:15]}  Qxc6 {[%clk 0:01:01]} 30. Qd1 {[%clk 0:00:15]}  Nf3+ {[%clk 0:01:01]} 31. Kf1 {[%clk 0:00:15]}  Qe4 {[%clk 0:00:52]} 32. Qe2 {[%clk 0:00:14]}  Nh2+ {[%clk 0:00:45]} 33. Ke1 {[%clk 0:00:14]}  Qh1+ {[%clk 0:00:41]} 34. Kd2 {[%clk 0:00:15]}  Nf3+ {[%clk 0:00:41]} 35. Kc2 {[%clk 0:00:15]}  Ne1+ {[%clk 0:00:41]} 36. Kd2 {[%clk 0:00:14]}  Nd3 {[%clk 0:00:41]} 37. Ke3 {[%clk 0:00:08]}  Qc1+ {[%clk 0:00:32]} 38. Kf3 {[%clk 0:00:08]}  Ne1+ {[%clk 0:00:29]} 39. Kg4 {[%clk 0:00:07]}  Nd3 {[%clk 0:00:25]} 40. Kf3 {[%clk 0:00:06]}  Nxb4 {[%clk 0:00:23]} 41. cxb4 {[%clk 0:00:07]}  Qc3+ {[%clk 0:00:24]} 42. Kg2 {[%clk 0:00:07]}  Qxb4 {[%clk 0:00:23]} 43. Qe4 {[%clk 0:00:07]}  Qd6 {[%clk 0:00:20]} 44. Qa8+ {[%clk 0:00:04]}  Kh7 {[%clk 0:00:21]} 45. f3 {[%clk 0:00:02]}  Qxd4 {[%clk 0:00:19]} 46. Qb7 {[%clk 0:00:03]}  c3 {[%clk 0:00:18]} 47. Qxf7 {[%clk 0:00:02]}  c2 {[%clk 0:00:18]} 48. Qc7 {[%clk 0:00:02]}  Qd2+ {[%clk 0:00:17]} 0-1

[Event "January 9 Early 2024"]
[Site "https://www.chess.com"]
[Date "2024.01.11"]
[Round "2"]
[White "Recuero Guerra, Javier"]
[Black "Dubnevych, Maksym"]
[Result "0-1"]
[Board "237"]
[TimeControl "180+1"]
[WhiteFideId "2254085"]
[BlackFideId "14184001"]
[WhiteElo "2284"]
[BlackElo "2518"]
[WhiteTeam "ESP"]
[BlackTeam "UKR"]
[WhiteClock "0:00:03"]
[BlackClock "0:00:08"]

1. e4 {[%clk 0:02:59]}  c5 {[%clk 0:02:47]} 2. Nf3 {[%clk 0:02:44]}  Nc6 {[%clk 0:02:46]} 3. d4 {[%clk 0:02:40]}  cxd4 {[%clk 0:02:46]} 4. Nxd4 {[%clk 0:02:41]}  e5 {[%clk 0:02:42]} 5. Nb5 {[%clk 0:02:39]}  d6 {[%clk 0:02:42]} 6. a4 {[%clk 0:02:36]}  Be6 {[%clk 0:02:38]} 7. Be3 {[%clk 0:02:21]}  g6 {[%clk 0:02:30]} 8. N1c3 {[%clk 0:01:58]}  a6 {[%clk 0:02:29]} 9. Na3 {[%clk 0:01:57]}  Rc8 {[%clk 0:02:00]} 10. Bc4 {[%clk 0:01:41]}  Na5 {[%clk 0:01:45]} 11. Bxe6 {[%clk 0:01:36]}  fxe6 {[%clk 0:01:46]} 12. Qg4 {[%clk 0:01:17]}  Qd7 {[%clk 0:01:39]} 13. O-O {[%clk 0:01:07]}  Nf6 {[%clk 0:01:38]} 14. Qh4 {[%clk 0:01:08]}  Bg7 {[%clk 0:01:33]} 15. Rad1 {[%clk 0:01:00]}  O-O {[%clk 0:01:28]} 16. Kh1 {[%clk 0:00:35]}  Nc4 {[%clk 0:01:24]} 17. Nxc4 {[%clk 0:00:34]}  Rxc4 {[%clk 0:01:25]} 18. f3 {[%clk 0:00:34]}  d5 {[%clk 0:01:23]} 19. Bg5 {[%clk 0:00:25]}  d4 {[%clk 0:01:18]} 20. Nb1 {[%clk 0:00:15]}  Rxc2 {[%clk 0:01:16]} 21. Qe1 {[%clk 0:00:15]}  Rxb2 {[%clk 0:01:11]} 22. Na3 {[%clk 0:00:12]}  Qxa4 {[%clk 0:01:11]} 23. Ra1 {[%clk 0:00:11]}  Qb3 {[%clk 0:01:10]} 24. Qc1 {[%clk 0:00:10]}  Qc3 {[%clk 0:01:03]} 25. Qd1 {[%clk 0:00:10]}  b5 {[%clk 0:00:56]} 26. Nb1 {[%clk 0:00:10]}  Qc2 {[%clk 0:00:55]} 27. Qxc2 {[%clk 0:00:10]}  Rxc2 {[%clk 0:00:55]} 28. Rxa6 {[%clk 0:00:09]}  Nxe4 {[%clk 0:00:56]} 29. Be7 {[%clk 0:00:07]}  Rf5 {[%clk 0:00:11]} 30. Ra8+ {[%clk 0:00:04]}  Kf7 {[%clk 0:00:12]} 31. Ra7 {[%clk 0:00:04]}  Ke8 {[%clk 0:00:11]} 32. Bb4 {[%clk 0:00:05]}  Bf8 {[%clk 0:00:11]} 33. Ra8+ {[%clk 0:00:05]}  Kd7 {[%clk 0:00:10]} 34. Rxf8 {[%clk 0:00:05]}  Rxf8 {[%clk 0:00:11]} 35. Bxf8 {[%clk 0:00:06]}  Nf6 {[%clk 0:00:09]} 36. Bg7 {[%clk 0:00:04]}  Nd5 {[%clk 0:00:09]} 37. Bxe5 {[%clk 0:00:02]}  d3 {[%clk 0:00:09]} 38. Na3 {[%clk 0:00:02]}  Ra2 {[%clk 0:00:09]} 39. Nxb5 {[%clk 0:00:02]}  Ne3 {[%clk 0:00:08]} 40. Rg1 {[%clk 0:00:01]}  d2 {[%clk 0:00:09]} 41. Nc3 {[%clk 0:00:02]}  Rc2 {[%clk 0:00:08]} 42. Nd1 {[%clk 0:00:03]}  Nxd1 {[%clk 0:00:08]} 43. Rxd1 {[%clk 0:00:03]}  Rc1 {[%clk 0:00:08]} 0-1

[Event "January 9 Early 2024"]
[Site "https://www.chess.com"]
[Date "2024.01.11"]
[Round "2"]
[White "Rohith Krishna S"]
[Black "Bodnaruk, Anastasia"]
[Result "1-0"]
[Board "239"]
[TimeControl "180+1"]
[WhiteFideId "46617051"]
[BlackFideId "4181751"]
[WhiteElo "2832"]
[BlackElo "2551"]
[WhiteTeam "IND"]
[BlackTeam "RUS"]
[WhiteClock "0:00:41"]
[BlackClock "0:00:02"]

1. d4 {[%clk 0:02:56]}  Nf6 {[%clk 0:02:59]} 2. c4 {[%clk 0:02:51]}  g6 {[%clk 0:02:59]} 3. Nc3 {[%clk 0:02:50]}  Bg7 {[%clk 0:02:59]} 4. e4 {[%clk 0:02:50]}  d6 {[%clk 0:02:59]} 5. Nf3 {[%clk 0:02:39]}  O-O {[%clk 0:02:59]} 6. Be2 {[%clk 0:02:37]}  e5 {[%clk 0:02:58]} 7. dxe5 {[%clk 0:02:37]}  dxe5 {[%clk 0:02:58]} 8. Qxd8 {[%clk 0:02:38]}  Rxd8 {[%clk 0:02:58]} 9. Bg5 {[%clk 0:02:38]}  Re8 {[%clk 0:02:51]} 10. Nd5 {[%clk 0:02:38]}  Nxd5 {[%clk 0:02:50]} 11. cxd5 {[%clk 0:02:39]}  c6 {[%clk 0:02:50]} 12. Bc4 {[%clk 0:02:32]}  b5 {[%clk 0:02:43]} 13. Bb3 {[%clk 0:02:32]}  Bb7 {[%clk 0:02:40]} 14. Rd1 {[%clk 0:02:16]}  Nd7 {[%clk 0:02:33]} 15. O-O {[%clk 0:02:13]}  c5 {[%clk 0:02:15]} 16. a4 {[%clk 0:02:00]}  a6 {[%clk 0:02:12]} 17. Bc2 {[%clk 0:01:46]}  f6 {[%clk 0:02:07]} 18. Bd2 {[%clk 0:01:46]}  Bf8 {[%clk 0:02:06]} 19. Ba5 {[%clk 0:01:46]}  Bd6 {[%clk 0:02:03]} 20. Nd2 {[%clk 0:01:43]}  c4 {[%clk 0:01:59]} 21. Nb1 {[%clk 0:01:43]}  Nc5 {[%clk 0:01:55]} 22. Nc3 {[%clk 0:01:44]}  b4 {[%clk 0:01:21]} 23. Bxb4 {[%clk 0:01:40]}  Nxe4 {[%clk 0:01:21]} 24. Nxe4 {[%clk 0:01:40]}  Bxb4 {[%clk 0:01:21]} 25. Nxf6+ {[%clk 0:01:40]}  Kf7 {[%clk 0:01:21]} 26. Nxe8 {[%clk 0:01:41]}  Rxe8 {[%clk 0:01:21]} 27. Be4 {[%clk 0:01:38]}  Rc8 {[%clk 0:01:07]} 28. f3 {[%clk 0:01:34]}  Bd6 {[%clk 0:01:02]} 29. h4 {[%clk 0:01:32]}  Bc5+ {[%clk 0:00:59]} 30. Kh2 {[%clk 0:01:32]}  Bd4 {[%clk 0:00:59]} 31. Rd2 {[%clk 0:01:32]}  Ke8 {[%clk 0:00:53]} 32. f4 {[%clk 0:01:16]}  Be3 {[%clk 0:00:50]} 33. Re2 {[%clk 0:01:14]}  exf4 {[%clk 0:00:47]} 34. g3 {[%clk 0:01:13]}  Kd7 {[%clk 0:00:23]} 35. gxf4 {[%clk 0:01:09]}  Bd4 {[%clk 0:00:23]} 36. f5 {[%clk 0:01:09]}  Kd6 {[%clk 0:00:15]} 37. fxg6 {[%clk 0:01:09]}  hxg6 {[%clk 0:00:16]} 38. Rg2 {[%clk 0:01:08]}  Be5+ {[%clk 0:00:14]} 39. Kh3 {[%clk 0:01:02]}  Kc5 {[%clk 0:00:14]} 40. Rxg6 {[%clk 0:01:02]}  Bxb2 {[%clk 0:00:14]} 41. Rf7 {[%clk 0:00:58]}  Ba8 {[%clk 0:00:13]} 42. Rxa6 {[%clk 0:00:54]}  Re8 {[%clk 0:00:12]} 43. Bg2 {[%clk 0:00:52]}  c3 {[%clk 0:00:13]} 44. Rc7+ {[%clk 0:00:51]}  Kd4 {[%clk 0:00:13]} 45. h5 {[%clk 0:00:49]}  Re5 {[%clk 0:00:11]} 46. Rxa8 {[%clk 0:00:48]}  Rxh5+ {[%clk 0:00:10]} 47. Kg4 {[%clk 0:00:48]}  Rh6 {[%clk 0:00:10]} 48. Kf5 {[%clk 0:00:47]}  Rh5+ {[%clk 0:00:10]} 49. Kg6 {[%clk 0:00:47]}  Rh2 {[%clk 0:00:10]} 50. Bf3 {[%clk 0:00:46]}  c2 {[%clk 0:00:10]} 51. Rac8 {[%clk 0:00:44]}  Kd3 {[%clk 0:00:08]} 52. d6 {[%clk 0:00:44]}  Be5 {[%clk 0:00:06]} 53. d7 {[%clk 0:00:42]}  Bxc7 {[%clk 0:00:06]} 54. Rxc7 {[%clk 0:00:43]}  Rh8 {[%clk 0:00:03]} 55. Rc8 {[%clk 0:00:43]}  Rd8 {[%clk 0:00:03]} 56. Bg4 {[%clk 0:00:42]}  Kd4 {[%clk 0:00:02]} 57. Rxc2 {[%clk 0:00:41]} 1-0

[Event "January 9 Early 2024"]
[Site "https://www.chess.com"]
[Date "2024.01.11"]
[Round "2"]
[White "Bologan, Victor"]
[Black "Smirnov, Mark"]
[Result "1-0"]
[Board "241"]
[TimeControl "180+1"]
[WhiteFideId "13900048"]
[BlackFideId "13764594"]
[WhiteElo "2794"]
[BlackElo "2536"]
[WhiteTeam "MDA"]
[BlackTeam "KAZ"]
[WhiteClock "0:00:14"]
[BlackClock "0:00:02"]

1. e4 {[%clk 0:03:00]}  c5 {[%clk 0:02:58]} 2. Nf3 {[%clk 0:03:00]}  d6 {[%clk 0:02:59]} 3. Bb5+ {[%clk 0:02:57]}  Nd7 {[%clk 0:02:57]} 4. d4 {[%clk 0:02:57]}  cxd4 {[%clk 0:02:56]} 5. Nxd4 {[%clk 0:02:57]}  Nf6 {[%clk 0:02:51]} 6. O-O {[%clk 0:02:56]}  a6 {[%clk 0:02:46]} 7. Bd3 {[%clk 0:02:54]}  e5 {[%clk 0:02:37]} 8. Nb3 {[%clk 0:02:50]}  Be7 {[%clk 0:02:23]} 9. c4 {[%clk 0:02:50]}  O-O {[%clk 0:02:22]} 10. Nc3 {[%clk 0:02:49]}  b6 {[%clk 0:02:21]} 11. f3 {[%clk 0:02:49]}  Nc5 {[%clk 0:02:07]} 12. Be3 {[%clk 0:02:47]}  Be6 {[%clk 0:02:04]} 13. Be2 {[%clk 0:02:44]}  Qc7 {[%clk 0:01:54]} 14. Qd2 {[%clk 0:02:44]}  Rac8 {[%clk 0:01:51]} 15. Rfd1 {[%clk 0:02:39]}  Rfd8 {[%clk 0:01:50]} 16. Nd5 {[%clk 0:02:35]}  Bxd5 {[%clk 0:01:39]} 17. cxd5 {[%clk 0:02:34]}  b5 {[%clk 0:01:25]} 18. Nxc5 {[%clk 0:02:30]}  dxc5 {[%clk 0:01:26]} 19. a4 {[%clk 0:02:29]}  c4 {[%clk 0:01:23]} 20. axb5 {[%clk 0:02:29]}  axb5 {[%clk 0:01:24]} 21. Ra7 {[%clk 0:02:29]}  Qd6 {[%clk 0:01:20]} 22. Rda1 {[%clk 0:02:28]}  Rc7 {[%clk 0:00:59]} 23. R7a6 {[%clk 0:01:44]}  Qb4 {[%clk 0:00:38]} 24. Qxb4 {[%clk 0:01:39]}  Bxb4 {[%clk 0:00:37]} 25. Rb6 {[%clk 0:01:13]}  Bc5 {[%clk 0:00:31]} 26. Bxc5 {[%clk 0:01:12]}  Rxc5 {[%clk 0:00:32]} 27. Ra5 {[%clk 0:01:10]}  c3 {[%clk 0:00:24]} 28. bxc3 {[%clk 0:01:07]}  Rxc3 {[%clk 0:00:25]} 29. Raxb5 {[%clk 0:01:04]}  Kf8 {[%clk 0:00:21]} 30. Rc6 {[%clk 0:00:52]}  Rxc6 {[%clk 0:00:17]} 31. dxc6 {[%clk 0:00:52]}  Rc8 {[%clk 0:00:18]} 32. Rc5 {[%clk 0:00:45]}  Ke7 {[%clk 0:00:17]} 33. Rxe5+ {[%clk 0:00:44]}  Kd6 {[%clk 0:00:17]} 34. Rf5 {[%clk 0:00:42]}  Rxc6 {[%clk 0:00:09]} 35. Kf2 {[%clk 0:00:32]}  Ke7 {[%clk 0:00:07]} 36. Ra5 {[%clk 0:00:29]}  Rc2 {[%clk 0:00:05]} 37. Ke3 {[%clk 0:00:27]}  Ne8 {[%clk 0:00:04]} 38. Ra7+ {[%clk 0:00:26]}  Kf8 {[%clk 0:00:03]} 39. h4 {[%clk 0:00:22]}  g6 {[%clk 0:00:03]} 40. g4 {[%clk 0:00:22]}  Ng7 {[%clk 0:00:03]} 41. Bd3 {[%clk 0:00:20]}  Rc3 {[%clk 0:00:03]} 42. Kd4 {[%clk 0:00:18]}  Rc6 {[%clk 0:00:03]} 43. Bc4 {[%clk 0:00:17]}  Rf6 {[%clk 0:00:03]} 44. Ke3 {[%clk 0:00:16]}  Ne6 {[%clk 0:00:03]} 45. g5 {[%clk 0:00:14]}  Nxg5 {[%clk 0:00:02]} 46. hxg5 {[%clk 0:00:14]} 1-0